Cogmind - Beta 15 @@@ ROGUE MODE // 2025.07.27 @ 14:00:33 Player: SpaceExplorer337 Result: Destroyed by G-47 Trooper with Particle Gun Performance ------------- Evolutions (0) 0 Regions Visited (1) 200 Robots Destroyed (10) 50 Value Destroyed (228) 228 Prototype IDs (0) 0 Alien Tech Used (0) 0 Bonus (0) 0 TOTAL SCORE: 478 Bonus ------- None Cogmind --------- Core Integrity 0/250 Matter 284/300 Energy 236/250 System Corruption 0% Temperature Cool (9) Movement Walking (190) Ox1 Location -10/Materials Parts ------- > --- POWER (1) -------- Ion Engine > --- PROPULSION (2) --- Aluminum Leg > --- UTILITY (2) ------ Heat Sink Small Storage Unit > --- WEAPON (2) ------- Small Laser Light Assault Rifle > --- INVENTORY (8) ---- Ion Engine Aluminum Leg Aluminum Leg Improved Terrain Scanner Peak State ------------ > --- POWER ------------ Ion Engine > --- PROPULSION ------- Aluminum Leg Aluminum Leg > --- UTILITY ---------- Small Storage Unit Improved Terrain Scanner > --- WEAPON ----------- Assault Rifle Light Assault Rifle > --- INVENTORY -------- Ion Engine Small Laser [Rating: 9] Favorites ----------- Power Ion Engine Engine Ion Engine Propulsion Aluminum Leg Leg Aluminum Leg Utility Small Storage Unit Device Improved Terrain Scanner Storage Small Storage Unit Weapon Assault Rifle Energy Gun Small Laser Ballistic Gun Assault Rifle Ballistic Cannon Light Cannon Build | -11 -10 ------- Run | Yrd Mat Slots Evolved . | . . Power . | . . Propulsion . | . . Utility . | . . Weapon . | . . Parts Attached 15 | 7 8 Power 2 | 1 1 Engine 2 | 1 1 Core . | . . Reactor . | . . Propulsion 5 | 2 3 Treads . | . . Leg 5 | 2 3 Wheel . | . . Hover . | . . Flight . | . . Utility 3 | 2 1 Device 2 | 1 1 Storage 1 | 1 . Processor . | . . Hackware . | . . Protection . | . . Artifact . | . . Weapon 5 | 2 3 Energy Gun 2 | . 2 Energy Cannon . | . . Ballistic Gun 2 | 2 . Ballistic Cannon 1 | . 1 Launcher . | . . Special Weapon . | . . Impact Weapon . | . . Slashing Weapon . | . . Piercing Weapon . | . . Special Melee Weapon . | . . Unidentified Prototypes . | . . Parts Lost 8 | . 8 Power 1 | . 1 Propulsion 4 | . 4 Utility . | . . Weapon 3 | . 3 Highest Loss Streak 5 | . 5 To Critical Strikes . | . . Average Backups 2 | 1 2 Power . | . . Propulsion . | . . Utility . | . . Weapon 1 | . 1 Tool/Special . | . . Unused Backups 3 | . 3 Power 1 | . 1 Propulsion 2 | . 2 Utility . | . . Weapon . | . . Tool/Special . | . . Average Slot Usage (%) 92 | . 92 Engine 12 | . 12 Leg 23 | . 23 Device 14 | . 14 Storage 14 | . 14 Energy Gun 9 | . 9 Ballistic Gun 15 | . 15 Ballistic Cannon 1 | . 1 Peak Build Rating 9 | 9 9 Average Rating 7 | 5 8 On Entrance 4 | . 9 Naked Turns . | . . Heaviest Build 14 | 14 14 Greatest Support 20 | 20 20 Greatest Overweight (x) 4 | . 4 Average Overweight (x) . | . . Largest Inventory Capacity 8 | 8 8 Average Capacity 7 | 7 8 Most Carried 5 | 3 5 Average Carried 2 | 1 2 Final Capacity 8 | 8 8 Final Carried 4 | 2 4 Class Distribution -------------------- 77% | Mutant 22% | Scavenger-Mutant Dominant Class ---------------- Mutant | -10/Materials Resources | -11 -10 ----------- Run | Yrd Mat Matter Collected 480 | 310 170 Remotely . | . . Salvage Created 359 | 146 213 Parts 19 | 8 11 Haulers Intercepted . | . . Recyclers Shooed 1 | . 1 Parts Field Recycled . | . . Retrieved Matter . | . . Parts Self-Destructed . | . . Prevented . | . . Kills | -11 -10 ------- Run | Yrd Mat Combat Hostiles Destroyed 5 | . 5 Guns 2 | . 2 Cannons 3 | . 3 Classes Destroyed 4 | 2 2 Builder 1 | . 1 Tunneler 3 | 3 . Recycler 1 | 1 . Grunt 5 | . 5 Best Kill Streak 3 | 2 3 Combat Bots Only 2 | . 2 Max Kills in Single Turn 1 | 1 1 Gunslinging . | . . Exploded . | . . Melee . | . . Uniques/NPCs Destroyed . | . . Combat | -11 -10 -------- Run | Yrd Mat Hostile Shots Fired 126 | . 126 Missed 39 | . 39 Hits 87 | . 87 Projectile 87 | . 87 Critical Strikes 2 | . 2 Damage Taken 1193 | . 1193 Core 262 | . 262 Absorbed by Shields . | . . Core Remaining (%) 100 | 100 . Volleys Fired 52 | 10 42 Largest 2 | 2 2 Hottest 80 | 40 80 Shots Fired 94 | 20 74 Gun 80 | 20 60 Cannon 14 | . 14 Launcher . | . . Special . | . . Kinetic 63 | 20 43 Thermal 31 | . 31 Explosive . | . . Electromagnetic . | . . Robot Hit Streak 5 | 4 5 Robot Miss Streak 3 | 2 3 Penetration Max . | . . Secondary Targets . | . . Shots Hit Robots 55 | 13 42 Core Hits 21 | 7 14 Critical Kills . | . . Critical Parts Destroyed . | . . Critical Strikes 1 | . 1 Blast 1 | . 1 Melee Attacks . | . . Impact . | . . Slashing . | . . Piercing . | . . Sneak Attacks . | . . Combat Hostiles . | . . Follow-up Attacks . | . . Damage Inflicted 708 | 131 577 Guns 566 | 131 435 Cannons 142 | . 142 Explosions . | . . Melee . | . . Ramming . | . . Kinetic 506 | 131 375 Thermal 202 | . 202 Explosive . | . . Electromagnetic . | . . Impact . | . . Slashing . | . . Piercing . | . . Highest Corruption . | . . Average Corruption . | . . Corruption Purged . | . . Corruption Blocked . | . . Overload Shots . | . . Overflow Damage . | . . Projectiles . | . . Explosions . | . . Melee . | . . Knockbacks 1 | . 1 Impact . | . . Kinetic 1 | . 1 Secondary . | . . Self-Inflicted Damage . | . . Shots . | . . Rammed . | . . Targets Rammed . | . . Kicked . | . . Crushed . | . . Highest Temperature 297 | . 297 Average Temperature 82 | . 82 Received Heat Transfer 714 | . 714 Effects 3 | . 3 Interference 3 | . 3 Siege Activations . | . . Martial Activations . | . . Shielding Activations . | . . Robots Disrupted . | . . Combat Hostiles . | . . Robots Corrupted . | . . Combat Hostiles . | . . Parts Fried . | . . Impact Corruptions . | . . Robots Melted . | . . Combat Hostiles . | . . Parts Melted . | . . Heat Transferred 475 | . 475 Parts Sabotaged . | . . Parts Stolen . | . . Parts Stripped . | . . Power Chain Reactions . | . . Alert | -11 -10 ------- Run | Yrd Mat Maximum Alert Level . | . . Low Security (%) 100 | 100 100 Level 1 . | . . Level 2 . | . . Level 3 . | . . Level 4 . | . . Level 5 . | . . High Security . | . . Max Security . | . . Peak Influence 45 | 10 45 Initial . | . . Average 6 | 1 8 Influence Increases 155 | 20 135 Destroy 0b10 Robot/C 100 | . 100 Destroy 0b10 Robot/NC 25 | 20 5 Destroy Leader 30 | . 30 Influence Decreases 155 | 20 135 Time Decay 110 | 20 90 Lost Part 45 | . 45 Squads Dispatched 2 | . 2 Investigation . | . . Extermination . | . . Reinforcement 2 | . 2 Assault . | . . Garrison . | . . Intercept . | . . Searches Triggered . | . . Construction Impeded . | . . Haulers Reinforced . | . . Active Scanning Responses . | . . Cargo Convoy Interrupts . | . . Stealth | -11 -10 --------- Run | Yrd Mat Distress Signals . | . . Communications Jammed . | . . Distress Signals . | . . Times Spotted 11 | . 11 Peak Tracking Total 5 | . 5 Tactical Retreats . | . . Traps | -11 -10 ------- Run | Yrd Mat Traps Triggered . | . . Indirectly . | . . Trap Hack Attempts . | . . Triggered . | . . Disarmed . | . . Reprogrammed . | . . Reused . | . . Traps Extracted . | . . Installed . | . . Triggered . | . . Machines | -11 -10 ---------- Run | Yrd Mat Machines Disabled . | . . Max in Single Turn . | . . Machines Repaired . | . . Machines Dismantled . | . . Machines Sabotaged . | . . Overloaded Fab Kills . | . . Hacking | -11 -10 --------- Run | Yrd Mat Machines Accessed 2 | . 2 Terminals 2 | . 2 Fabricators . | . . Repair Stations . | . . Recycling Units . | . . Scanalyzers . | . . Garrison Access . | . . Total Hacks 2 | . 2 Successful . | . . Failed 2 | . 2 Catastrophic . | . . Database Lockouts . | . . Manual . | . . Terminals 2 | . 2 Fabricators . | . . Repair Stations . | . . Recycling Units . | . . Scanalyzers . | . . Garrison Access . | . . Terminal Hacks . | . . Fabricator Hacks . | . . Repair Station Hacks . | . . Recycling Unit Hacks . | . . Scanalyzer . | . . Garrison Access Hacks . | . . Unauthorized Hacks . | . . Terminals . | . . Fabricators . | . . Repair Stations . | . . Recycling Units . | . . Scanalyzers . | . . Garrison Access . | . . Data Cores Recovered . | . . Used . | . . Hacking Detections 2 | . 2 Full Trace Events . | . . Feedback Events . | . . Feedback Blocked . | . . Robot Schematics Acquired . | . . Robots Built . | . . Authchips . | . . Time . | . . Total Robot Build Rating . | . . Part Schematics Acquired . | . . Parts Built . | . . Authchips . | . . Time . | . . Total Part Build Rating . | . . Parts Repaired . | . . Time . | . . Parts Recycled . | . . Recycled Matter . | . . Retrieved Matter . | . . Retrieved Components . | . . Parts Scanalyzed . | . . Part Schematics Acquired . | . . Parts Damaged . | . . Bothacking | -11 -10 ------------ Run | Yrd Mat Used RIF Installer . | . . Robots Hacked . | . . Non-combat . | . . Combat . | . . Robot Hacks Applied . | . . Relay Couplers Released . | . . Fabnet Peak Effective % . | . . Robots Rewired . | . . Allies Hacked . | . . Hacks Repelled . | . . Allies | -11 -10 -------- Run | Yrd Mat Total Allies . | . . Largest Group . | . . Highest-Rated Group . | . . Highest-Rated Ally . | . . Total Orders . | . . Ally Attacks . | . . Total Damage . | . . Kills . | . . Allies Corrupted . | . . Allies Melted . | . . Intel | -11 -10 ------- Run | Yrd Mat Active Infowar (turns) 343 | 17 326 Terrain 343 | 17 326 Robot Analysis Total . | . . Derelict Logs Recovered . | . . Drone Launches . | . . Drone Recoveries . | . . Exploration | -11 -10 ------------- Run | Yrd Mat Turns Passed 474 | 119 355 Spaces Moved 236 | 68 168 Core 17 | 9 8 Treads . | . . Legs 219 | 59 160 Wheels . | . . Hover . | . . Flight . | . . Fastest Speed 50 | 50 120 Average Speed 119 | 110 122 Slowest Speed 250 | 120 250 Overloaded Moves . | . . Propulsion Burnouts . | . . Robots Hopped . | . . Potential Cave-ins . | . . Cave-ins Triggered . | . . Exploration Rate (%) 15 | 6 25 Regions Visited 1 Branch Regions . Pre-discovered Areas . | . . Known Exits Taken . | . . Unknown Exits Taken 1 | 1 . Scrap Searched . | . . Spaces Dug . | . . Terrain Destroyed . | . . Melee . | . . Projectile . | . . AOE . | . . Terrain Rammed . | . . Walls Destroyed . | . . Machines Disabled . | . . Actions | -11 -10 --------- Run | Yrd Mat Total 336 | 93 243 Wait 14 | . 14 Move 235 | 67 168 Hop . | . . Pick Up 18 | 9 9 Fast Attach . | . . Attach 14 | 7 7 Detach . | . . Swap 3 | . 3 Drop . | . . Fire 52 | 10 42 Melee . | . . Ram . | . . Kick . | . . Crush . | . . Escape Stasis . | . . Rewire . | . . Trap . | . . Miscellaneous . | . . Route ------- -11/Scrapyard -10/Materials History --------- Turn | Location | Event 4 | -11/Scrapyard | Discovered new exit (range 14) 120 | -11/Scrapyard | Entered Materials 317 | -10/Materials | Build established: Mutant 360 | -10/Materials | Core integrity fell below 50% 374 | -10/Materials | Lost 5 parts (1p2n2w) 412 | -10/Materials | Core integrity fell below 20% 475 | -10/Materials | Destroyed by G-47 Trooper with Particle Gun Last Messages --------------- 00405_ Imp. Terrain Scanner temporarily disabled. 00405_ Sml. Laser temporarily disabled. 00405_ Imp. Terrain Scanner temporarily disabled. 00405_ Aluminum Leg destroyed. 00409_ Acquired 19 matter. 00413_ G-47 Trooper destroyed. 00415_ Acquired 4 matter. 00419_ Acquired Ion Engine. 00420_ Acquired 22 matter. 00420_ R-06 Scavenger collects Wheel. 00423_ R-06 Scavenger collects Sml. Laser. 00425_ Acquired Aluminum Leg. 00426_ R-06 Scavenger collects Lgt. Ion Engine. 00428_ Acquired Aluminum Leg. 00430_ R-06 Scavenger collects Heat Sink. 00431_ Acquired Heat Sink. 00468_ Aluminum Leg destroyed. 00470_ Sml. Laser destroyed. Map ----- +----------------------------------------------------+ | ????????????????????? ????????????????????????? | | ????????????????????? ????????????????????????? | | ????????????????????? ????????????????????????? | | ????????????????????? ????????????????????????? | | ???????????????#?????# ????????????????????????? | | ???????????????????#?# #???????????????????????? | | ?????????????????????# #????#?????????????????? | | ?????????????????##### #?????#?????????????????? | | ?????????????????? #??????????????#????????? | | ??????????????????? #?????????????????????? ? | | ???????????????????? ########????????? ??????? | | ?????????????????????# # #????????????????? | | ???????????????#???### # #? ?????????? ???? | | ?????????????????????# # #?? ????????????? | | ??????????????????#??# + #????????????????? | | ?????????????????#??## g # ##???##########??? | | ?????????????????#???# g# #?#??# #??? | | ?????????????#??###?## ##+#####?#??# """"" #??? | | ???????????? ?????#?#%% # #???##?### """"" #??? | | ??????????????????#?# % # #??####### """"" #??? | | ???????#??"?????????# r # #?## # """"" #??? | | ???????#?"?????##?### # #??# # """"" #? ? | | ??????????"?????????# # #?## + """"" #??? | | ????????????????#???## %t% #?## # """"" #??? | | ???????#####+#########% #??# # #?#? | | ??????# g %@ #??## ###########??? | | ??????# ####???# #?##???#?????? | | ??????# a r % #??????# #??????????? ? | | ??????# ##/#########+#+##?????# #?#????????? ? | | ????????????? ????# ####### #????????????? | | ?????????????????##" "" ## ##?#?????????? | | ??????????#???????#T """ + ##?#???# ????? | | ??????????? ??????#" """ ## #????????????? | | ????????????"?"???# ## ######???#????????? | | ??????????#????? ?# """ ## #???#?#??#?#? ????? | | ??????????????????# """ + #?????????????????? | | ???????????#???#?##= """ ## ##########??#?????? | | ????????????????#?# ## # #????????? | | ?????????????????## ## # "" #????????? | | ?????????????#????# ## # "T #??????#?? | | ??????????????????########## # "" #????????? | | ???????????????#???#?#??#### + #????????? | | ?????????????#??????##??# # """ #?#??????? | | ??????????????????##????# # """ #????????? | | ???????????????????##??## # """ #????????? | | ????????????????????????# # #????????? | | ????????????????????#####+## ###########???????? | | ????????????????????# # #?????????????????? | | ????????????????????# """# #?#???????????????? | | ?????????????????#??# """# #????????#????????? | +----------------------------------------------------+ Best States ------------- Heat Dissipation 25 Energy Generation 10 Energy Capacity 250 Matter Stores 300 Matter Capacity 300 Sight Range 16 Terrain Scan Range 16 Terrain Scan Density 10 Evasion (%) 55 Item Schematics ----------------- None Robot Schematics ------------------ None Fabricated ------------ Nothing Repaired ---------- Nothing Alien Tech Used ----------------- None Achievements -------------- None Challenges ------------ None Game ------ Seed AerolevSalvageCasing Manual? 0 Play Time 00:06:13 Cumulative 18.2 hours Start 2025.07.27 @ 13:55:02 End 2025.07.27 @ 14:00:33 Sessions 1 Manual Loads 0 Difficulty Rogue Special Mode None Game No. 28 Rogue 28 Adventurer 0 Explorer 0 Win Type - Total 0 Types 0/0/0/0/0/0/0/0/0/0 Lore% 14 Gallery% 17 Achievement% 17 Wizard Run 0 Options --------- Layout 1 ASCII 0 Keyboard 0 Movement Mouse Keybinds 0 Fullscreen 1 Font 24/Smallcaps Map View 50x40 Zoom Use 0% Tactical HUD 1 Map Filters NONE Filters NONE Steam 1 RUN: cfb59034-999b-4edb-b1b9-3861d072b5d3